fUSD/lending_fUSD_20250128
["ID","MTS","AMOUNT","RATE_DAILY","PERIOD"]
[350651395,1738027833576,-150.0,0.00017043,2]
[350651396,1738027833586,-150.0,0.00017043,2]
[350651397,1738027833599,-793.66,0.00017043,2]
[350651398,1738027833608,-419.56341787,0.00017089,2]
[350651399,1738027833618,-150.0,0.000171,4]
[350651400,1738027833627,-300.0,0.00017129,2]
[350651401,1738027833639,-559.97677987,0.00017303,2]
[350651402,1738027833649,-500.0,0.00017321,2]
[350651403,1738027833659,-1058.0,0.00017362,2]
[350651404,1738027833669,-500.0,0.00017402,2]
[350651405,1738027833679,-500.0,0.00017402,2]
[350651406,1738027833688,-500.0,0.00017402,2]
[350651407,1738027833698,-500.0,0.00017402,2]
[350651408,1738027833707,-500.0,0.00017402,2]
[350651409,1738027833717,-500.0,0.00017402,2]
[350651410,1738027833727,-500.0,0.00017402,2]
[350651411,1738027833736,-500.0,0.00017402,2]
[350651412,1738027833746,-355.50130942,0.00017402,2]
[350651413,1738027833756,-631.48,0.00017403,7]
[350651414,1738027833766,-631.48,0.00017403,7]
[350651415,1738027833775,-631.48,0.00017403,7]
[350651416,1738027833784,-631.48,0.00017403,7]
[350651417,1738027833794,-78261.62292196,0.00017403,2]
[350651418,1738027833803,-1000.0,0.00017442,2]
[350651419,1738027833812,-500.0,0.00017473,2]
[350651420,1738027833821,-294.84,0.00017479,2]
[350651421,1738027833831,-419.56341787,0.00017538,2]
[350651422,1738027833840,-424.47,0.00017554,2]
[350651423,1738027833850,-150.0,0.000176,5]
[350651424,1738027833859,-200.0,0.00017673,2]
[350651425,1738027833870,-559.97677981,0.00017675,2]
[350651426,1738027833879,-631.48,0.00017677,7]
[350651427,1738027833888,-631.48,0.00017677,7]
[350651428,1738027833897,-999.99,0.00017728,2]
[350651429,1738027833906,-4342.64,0.00017728,2]
[350651430,1738027833916,-150.99,0.00017728,2]
[350651431,1738027833925,-812.63,0.00017728,2]
[350651432,1738027833934,-150.99,0.00017728,2]
[350651433,1738027833943,-9999.99,0.00017728,2]
[350651434,1738027833951,-27565.09,0.00017728,2]
[350651435,1738027833959,-8453.7,0.00017728,2]
[350651436,1738027833967,-264.65,0.00017728,2]
[350651437,1738027833975,-200.0,0.00017864,2]
[350651438,1738027833983,-200.0,0.00017864,2]
[350651439,1738027833992,-200.0,0.00017864,2]
[350651440,1738027834002,-642.91597519,0.00017864,2]
[350651441,1738027834011,-500.0,0.00017864,2]
[350651442,1738027834021,-500.0,0.00017864,2]
[350651443,1738027834030,-500.0,0.00017864,2]
[350651444,1738027834041,-500.0,0.00017864,2]
[350651445,1738027834051,-500.0,0.00017864,2]
[350651446,1738027834060,-430.57542045,0.00017864,2]
[350651447,1738027834070,-212.71922494,0.00017865,2]
[350651448,1738027834079,-298.28,0.00017867,2]
[350651449,1738027834088,-298.28,0.00017867,2]
[350651450,1738027834098,-300.62,0.00017867,2]
[350651451,1738027834107,-500.0,0.00017896,2]
[350651452,1738027834116,-631.48,0.00017951,7]
[350651453,1738027834125,-631.48,0.00017951,7]
[350651454,1738027834134,-419.56341787,0.00017986,2]
[350651455,1738027834144,-559.97677981,0.00018046,2]
[350651456,1738027834153,-2000.0,0.00018082,2]
[350651457,1738027834162,-177.59,0.00018085,2]
[350651458,1738027834171,-194.74834,0.000181,5]
[350651459,1738027834180,-631.48,0.00018225,7]
[350651460,1738027834189,-631.48,0.00018225,7]
[350651461,1738027834199,-500.0,0.00018326,2]
[350651462,1738027834208,-6835.0,0.00018348,2]
[350651463,1738027834217,-660.93,0.00018371,2]
[350651464,1738027834226,-152.0,0.00018395,3]
[350651465,1738027834236,-559.97677981,0.00018418,2]
[350651466,1738027834245,-500.0,0.00018426,2]
[350651467,1738027834254,-419.56341787,0.00018434,2]
[350651468,1738027834263,-300.0,0.00018498,2]
[350651469,1738027834273,-631.48,0.00018499,7]
[350651470,1738027834283,-631.48,0.00018499,7]
[350651471,1738027834293,-500.0,0.00018526,2]
[350651472,1738027834302,-1709.31,0.00018533,2]
[350651473,1738027834312,-602.74,0.00018533,2]
[350651474,1738027834322,-2006.34,0.00018533,2]
[350651475,1738027834331,-500.65,0.00018533,2]
[350651476,1738027834340,-319.33,0.00018553,2]
[350651477,1738027834349,-552.17,0.00018553,2]
[350651478,1738027834358,-173.68,0.000186,2]
[350651479,1738027834367,-1034.63727057,0.00018612,2]
[350651480,1738027834377,-500.0,0.00018626,2]
[350651481,1738027834387,-150.99,0.00018689,2]
[350651482,1738027834396,-983.1,0.00018689,2]
[350651483,1738027834405,-298.28,0.00018689,2]
[350651484,1738027834414,-298.28,0.00018689,2]
[350651485,1738027834424,-517.99,0.00018689,2]
[350651486,1738027834433,-983.1,0.00018689,2]
[350651487,1738027834444,-979.1,0.00018689,2]
[350651488,1738027834453,-500.0,0.00018726,2]
[350651489,1738027834463,-20000.0,0.00018729,2]
[350651490,1738027834472,-150.0,0.00018749,2]
[350651491,1738027834481,-150.0,0.0001875,2]
[350651492,1738027834491,-2000.0,0.00018751,2]
[350651493,1738027834501,-150.0,0.00018767,2]
[350651494,1738027834511,-631.48,0.00018773,7]
[350651495,1738027834521,-631.48,0.00018773,7]
[350651496,1738027834530,-559.97677981,0.00018789,2]
[350651497,1738027834541,-150.0,0.00018795,2]
[350651498,1738027834550,-500.0,0.00018799,2]
[350651499,1738027834559,-500.0,0.00018799,2]
[350651500,1738027834569,-841.0,0.000188,2]
[350651501,1738027834579,-855.3982,0.000188,2]
[350651502,1738027834592,-29411.981,0.000188,2]
[350651503,1738027834602,-150.0,0.0001881,2]
[350651504,1738027834611,-500.0,0.00018826,2]
[350651505,1738027834621,-150.0,0.00018833,2]
[350651506,1738027834630,-500.0,0.0001884,2]
[350651507,1738027834640,-150.0,0.0001885,2]
[350651508,1738027834649,-190.579,0.00018874,2]
[350651509,1738027834658,-150.0,0.00018881,2]
[350651510,1738027834669,-419.56341787,0.00018883,2]
[350651511,1738027834679,-150.0,0.00018887,2]
[350651512,1738027834688,-5000.0,0.00018899,2]
[350651513,1738027834697,-14580.818,0.000189,2]
[350651514,1738027834707,-150.0,0.00018902,2]
[350651515,1738027834716,-500.0,0.00018926,2]
[350651516,1738027834726,-150.0,0.00018943,2]
[350651517,1738027834735,-1000.0,0.00018947,2]
[350651518,1738027834745,-500.0,0.00018973,2]
[350651519,1738027834754,-500.0,0.00018973,2]
[350651520,1738027834763,-1000.0,0.00018985,2]
[350651521,1738027834772,-861.3979522,0.00018986,2]
[350651522,1738027834782,-881.385617,0.00018986,2]
[350651523,1738027834791,-176.2771234,0.00018986,2]
[350651524,1738027834800,-323.8041486,0.00018986,2]
[350651525,1738027834809,-790.4995463,0.00018986,2]
[350651526,1738027834818,-760.47846892,0.00018986,2]
[350651527,1738027834828,-190.68841859,0.0001899,2]
[350651528,1738027834837,-1350.77379878,0.00018992,2]
[350651529,1738027834846,-200.0,0.00018992,2]
[350651530,1738027834855,-150.0,0.00018992,2]
[350651531,1738027834865,-150.0,0.00018992,2]
[350651532,1738027834874,-150.0,0.00018992,2]
[350651533,1738027834883,-150.0,0.00018992,2]
[350651534,1738027834892,-150.0,0.00018992,2]
[350651535,1738027834901,-150.0,0.00018992,2]
[350651536,1738027834911,-150.0,0.00018992,2]
[350651537,1738027834920,-150.0,0.00018992,2]
[350651538,1738027834930,-150.0,0.00018992,2]
[350651539,1738027834939,-150.0,0.00018992,2]
[350651540,1738027834948,-150.0,0.00018992,2]
[350651541,1738027834958,-150.0,0.00018992,2]
[350651542,1738027834967,-150.0,0.00018992,2]
[350651543,1738027834976,-150.0,0.00018992,2]
[350651544,1738027834986,-150.0,0.00018992,2]
[350651545,1738027834995,-150.0,0.00018992,2]
[350651546,1738027835004,-150.0,0.00018992,2]
[350651547,1738027835013,-229.40563478,0.00018992,2]
[350651548,1738027835022,-200.0,0.00018999,2]
[350651549,1738027835032,-200.0,0.00018999,2]
[350651550,1738027835041,-500.0,0.00018999,2]
[350651551,1738027835050,-500.0,0.00018999,2]
[350651552,1738027835059,-500.0,0.00018999,2]
[350651553,1738027835068,-500.0,0.00018999,2]
[350651554,1738027835077,-1709.31,0.00018999,2]
[350651555,1738027835087,-1709.31,0.00018999,2]
[350651556,1738027835096,-602.74,0.00018999,2]
[350651557,1738027835105,-602.74,0.00018999,2]
[350651558,1738027835114,-2006.34,0.00018999,2]
[350651559,1738027835123,-2006.34,0.00018999,2]
[350651560,1738027835132,-500.65,0.00018999,2]
[350651561,1738027835141,-500.65,0.00018999,2]
[350651562,1738027835151,-961.61,0.00019,2]
[350651563,1738027835161,-15194.9495625,0.00019,2]
[350651564,1738027835171,-9000.0,0.00019,2]
[350651565,1738027835180,-86353.25118289,0.00019,2]
[350651566,1738027835190,-600.0,0.00019,3]
[350651567,1738027835199,-10328.99013412,0.00019,2]
[350651568,1738027835208,-90667.52749776,0.00019,2]
[350651569,1738027835222,-706.92122751,0.00019,2]
[350651570,1738027835233,-7248.65391012,0.00019,2]
[350651571,1738027835243,-53521.47380572,0.00019,2]
[350651572,1738027835251,-13487.56522569,0.00019,2]
[350651573,1738027835262,-1470.9993,0.00019,2]
[350651574,1738027835273,-532.67156041,0.00019,2]
[350651575,1738027835283,-3263.55548095,0.00019,2]
[350651576,1738027835292,-47121.41985742,0.00019,2]
[350651577,1738027835303,-15466.20265994,0.00019,2]
[350651578,1738027835318,-383.58697713,0.00019,2]
[350651581,1738027838492,-2025.319,0.00015877,2]
[350651582,1738027838501,-28000.14744204,0.00019,2]
[350651583,1738027838510,-1187.6473546,0.00019,20]
[350651584,1738027838519,-6025.96,0.00019,2]
[350651585,1738027838528,-216.07578888,0.00019,2]
[350651586,1738027838537,-700.0,0.00019,2]
[350651587,1738027838548,-340.31485218,0.0001901,7]
[350651588,1738027838557,-1000.0,0.0001902,2]
[350651589,1738027838566,-500.0,0.00019026,2]
[350651590,1738027838576,-152.0,0.00019029,4]
[350651591,1738027838585,-631.48,0.00019047,7]
[350651592,1738027838598,-631.48,0.00019047,7]
[350651593,1738027838607,-5066.80403246,0.0001911,2]
[350651594,1738027838617,-500.0,0.00019126,2]
[350651595,1738027838626,-11899.05,0.00019151,2]
[350651596,1738027838637,-559.97677981,0.00019161,2]
[350651597,1738027838646,-500.0,0.00019178,7]
[350651598,1738027838656,-500.0,0.00019178,7]
[350651599,1738027838666,-500.0,0.00019178,7]
[350651600,1738027838675,-500.0,0.00019178,7]
[350651601,1738027838685,-500.0,0.00019178,7]
[350651602,1738027838694,-861.78705915,0.00019178,2]
[350651604,1738027838703,-150.0,0.00019178,2]
[350651606,1738027838713,-3228.98,0.00019178,2]
[350651607,1738027838722,-150.0,0.00019178,2]
[350651608,1738027838731,-200.0,0.00019182,2]
[350651609,1738027838740,-150.0,0.000192,100]
[350651610,1738027838750,-3834.07818807,0.000192,2]
[350651611,1738027838759,-500.0,0.00019226,2]
[350651612,1738027838768,-315.65,0.00019242,30]
[350651613,1738027838776,-378626.95752191,0.0001927,2]
[350651614,1738027838788,-38484.2727969,0.0001927,2]
[350651615,1738027838800,-19504.58361258,0.0001927,2]
[350651616,1738027838812,-25952.56340085,0.0001927,2]
[350651618,1738027838831,-82017.20564484,0.0001927,2]
[350651620,1738027838841,-5762.95722679,0.0001927,2]
[350651625,1738027840323,-2000.0,0.00018299,2]
[350651626,1738027840332,-2000.0,0.00018976,2]
[350651627,1738027840341,-153811.01838413,0.0001927,2]
[350651628,1738027840350,-2504.43712,0.0001927,2]
[350651629,1738027840359,-500.0,0.00019299,2]
[350651630,1738027840368,-500.0,0.00019299,2]
[350651631,1738027840377,-9465.49264506,0.000193,2]
[350651632,1738027840386,-631.48,0.00019321,7]
[350651633,1738027840394,-631.48,0.00019321,7]
[350651634,1738027840404,-500.0,0.00019326,2]
[350651635,1738027840413,-419.56341787,0.00019331,2]
[350651636,1738027840422,-1000.0,0.0001938,2]
[350651637,1738027840431,-294.84,0.00019421,2]
[350651638,1738027840440,-500.0,0.00019426,2]
[350651639,1738027840449,-5000.0,0.000195,2]
[350651640,1738027840458,-303.74,0.00019512,2]
[350651641,1738027840467,-437.71,0.00019512,2]
[350651642,1738027840476,-150.0,0.00019512,2]
[350651643,1738027840485,-438.0,0.00019512,2]
[350651644,1738027840494,-150.0,0.00019512,2]
[350651645,1738027840503,-1000.0,0.00019521,2]
[350651646,1738027840513,-591.54499239,0.00019521,2]
[350651647,1738027840523,-500.0,0.00019526,2]
[350651648,1738027840532,-559.97677981,0.00019532,2]
[350651649,1738027840541,-631.48,0.00019595,7]
[350651650,1738027840551,-631.48,0.00019595,7]
[350651651,1738027840561,-3286.40166377,0.0001961,2]
[350651652,1738027840570,-500.0,0.00019626,2]
[350651653,1738027840579,-2000.0,0.00019653,2]
[350651654,1738027840593,-152.0,0.00019662,5]
[350651655,1738027840602,-150.0,0.00019683,2]
[350651656,1738027840612,-500.0,0.00019726,2]
[350651657,1738027840621,-424.47,0.00019748,2]
[350651658,1738027840631,-419.56341787,0.00019779,2]
[350651659,1738027840640,-3418.93001313,0.000198,2]
[350651660,1738027840649,-500.0,0.00019826,2]
[350651661,1738027840659,-658.90366842,0.0001984,3]
[350651662,1738027840669,-11999.999999,0.00019844,3]
[350651663,1738027840679,-631.48,0.00019869,7]
[350651664,1738027840689,-631.48,0.00019869,7]
[350651665,1738027840698,-5000.0,0.00019874,10]
[350651666,1738027840707,-151.0,0.00019898,2]
[350651667,1738027840717,-559.847754,0.00019898,2]
[350651668,1738027840726,-559.847754,0.00019898,2]
[350651669,1738027840736,-151.0,0.00019898,2]
[350651670,1738027840745,-151.0,0.00019899,2]
[350651671,1738027840755,-151.0,0.00019899,2]
[350651672,1738027840764,-602.74,0.00019899,2]
[350651673,1738027840774,-28313.46939055,0.000199,7]
[350651675,1738027840783,-10597.99659013,0.000199,5]
[350651677,1738027840792,-4691.69173406,0.000199,3]
[350651679,1738027840802,-6025.96,0.000199,2]
[350651680,1738027840811,-180.17518008,0.000199,2]
[350651681,1738027840820,-151.0,0.000199,2]
[350651682,1738027840830,-1105.41063702,0.000199,2]
[350651683,1738027840839,-7000.0,0.000199,2]
[350651684,1738027840848,-7000.0,0.000199,2]
[350651685,1738027840859,-170.97392674,0.000199,2]
[350651687,1738027840868,-16868.51025049,0.000199,2]
[350651688,1738027840877,-559.97677981,0.00019904,2]
[350651690,1738027840887,-500.0,0.00019926,2]
[350651692,1738027840896,-2006.34,0.00019929,2]
[350651694,1738027840905,-500.65,0.00019929,2]
[350651696,1738027840914,-2738.45080284,0.0001993,4]
[350651700,1738027840941,-278.4771585,0.0001993,4]
[350651701,1738027840953,-1259.03673685,0.0001993,4]
[350651702,1738027840964,-11969.80778112,0.0001993,4]
[350651703,1738027840973,-246.702607,0.00019939,2]
[350651704,1738027840982,-7000.0,0.00019939,2]
[350651705,1738027840991,-7000.0,0.00019939,2]
[350651706,1738027841001,-200.0,0.00019949,2]
[350651707,1738027841010,-200.0,0.00019949,2]
[350651708,1738027841019,-500.0,0.00019949,2]
[350651709,1738027841028,-500.0,0.00019949,2]
[350651710,1738027841037,-352.12895095,0.00019949,7]
[350651711,1738027841047,-500.0,0.00019949,2]
[350651712,1738027841057,-500.0,0.00019949,2]
[350651713,1738027841066,-500.0,0.00019949,2]
[350651714,1738027841075,-372.02,0.00019949,2]
[350651715,1738027841084,-1709.31,0.00019949,2]
[350651716,1738027841093,-1709.31,0.00019949,2]
[350651717,1738027841103,-602.74,0.00019949,2]
[350651718,1738027841111,-918.80725157,0.00019949,2]
[350651719,1738027841122,-464.86247294,0.00019949,2]
[350651741,1738027843426,-150.777,0.00015877,2]
[350651743,1738027843435,-500.0,0.00019,2]
[350651744,1738027843445,-622.67027549,0.00019949,2]
[350651745,1738027843454,-500.65,0.00019949,2]
[350651746,1738027843464,-915.0,0.0001995,2]
[350651747,1738027843473,-27906.90272453,0.0001995,5]
[350651748,1738027843484,-2434.86374923,0.0001995,5]
[350651749,1738027843499,-46614.16253543,0.0001995,5]
[350651750,1738027843576,-572.4865023,0.0001995,5]
[350651783,1738027846545,-2458.29243972,0.0001995,5]
[350651784,1738027846557,-1379.8397769,0.0001995,5]
[350651785,1738027846568,-249126.82331146,0.0001995,5]
[350651786,1738027846577,-151.0,0.0001995,2]
[350651787,1738027846587,-151.0,0.0001995,2]
[350651788,1738027846599,-559.847754,0.0001995,2]
[350651789,1738027846608,-151.0,0.0001995,2]
[350651790,1738027846618,-7000.0,0.0001995,2]
[350651791,1738027846627,-7000.0,0.0001995,2]
[350651792,1738027846637,-184.56144434,0.00019953,2]
[350651793,1738027846647,-514.0,0.0001997,2]
[350651794,1738027846656,-602.74,0.00019997,2]
[350651795,1738027846666,-2006.34,0.00019997,2]
[350651796,1738027846675,-500.65,0.00019997,2]
[350651797,1738027846684,-114062.59960775,0.00019998,7]
[350651798,1738027846694,-1709.31,0.00019998,2]
[350651799,1738027846703,-200.0,0.00019999,2]
[350651800,1738027846713,-200.0,0.00019999,2]
[350651801,1738027846722,-200.0,0.00019999,2]
[350651802,1738027846731,-200.0,0.00019999,2]
[350651803,1738027846740,-200.0,0.00019999,2]
[350651804,1738027846749,-200.0,0.00019999,2]
[350651805,1738027846759,-500.0,0.00019999,2]
[350651806,1738027846768,-500.0,0.00019999,2]
[350651807,1738027846777,-500.0,0.00019999,2]
[350651809,1738027846786,-500.0,0.00019999,2]
[350651811,1738027846795,-500.0,0.00019999,2]
[350651813,1738027846804,-500.0,0.00019999,2]
[350651815,1738027846813,-500.0,0.00019999,2]
[350651817,1738027846823,-500.0,0.00019999,2]
[350651819,1738027846832,-500.0,0.00019999,2]
[350651821,1738027846841,-500.0,0.00019999,2]
[350651823,1738027846850,-500.0,0.00019999,2]
[350651825,1738027846859,-500.0,0.00019999,2]
[350651827,1738027846868,-500.0,0.00019999,2]
[350651829,1738027846878,-1709.31,0.00019999,2]
[350651831,1738027846887,-1709.31,0.00019999,2]
[350651833,1738027846896,-1709.31,0.00019999,2]
[350651835,1738027846906,-1709.31,0.00019999,2]
[350651837,1738027846915,-1709.31,0.00019999,2]
[350651839,1738027846924,-602.74,0.00019999,2]
[350651841,1738027846934,-602.74,0.00019999,2]
[350651843,1738027846943,-602.74,0.00019999,2]
[350651845,1738027846952,-2006.34,0.00019999,2]
[350651847,1738027846961,-602.74,0.00019999,2]
[350651849,1738027846971,-2006.34,0.00019999,2]
[350651851,1738027846980,-602.74,0.00019999,2]
[350651853,1738027846989,-2006.34,0.00019999,2]
[350651855,1738027847000,-2006.34,0.00019999,2]
[350651857,1738027847009,-2006.34,0.00019999,2]
[350651859,1738027847018,-500.65,0.00019999,2]
[350651861,1738027847027,-500.65,0.00019999,2]
[350651863,1738027847036,-500.65,0.00019999,2]
[350651865,1738027847045,-500.65,0.00019999,2]
[350651867,1738027847054,-500.65,0.00019999,2]
[350651869,1738027847063,-41609.33379503,0.0002,2]
[350651871,1738027847072,-101741.14768835,0.0002,4]
[350651873,1738027847081,-3704.0,0.0002,3]
[350651875,1738027847091,-1500.44252214,0.0002,2]
[350651877,1738027847100,-471.67847972,0.0002,10]
[350651879,1738027847109,-2183.6341583,0.0002,5]
[350651881,1738027847118,-715.8360707,0.0002,20]
[350651882,1738027847127,-7755.0,0.0002,5]
[350651883,1738027847136,-150.79996861,0.0002,20]
[350651884,1738027847146,-111140.52287698,0.0002,4]
[350651885,1738027847158,-242.29464178,0.0002,30]
[350651886,1738027847167,-500.0,0.0002,2]
[350651887,1738027847176,-500.0,0.0002,5]
[350651888,1738027847185,-500.0,0.0002,3]
[350651889,1738027847194,-422.84,0.0002,2]
[350651890,1738027847203,-600.0,0.0002,4]
[350651891,1738027847212,-2110.0,0.0002,2]
[350651892,1738027847221,-2999.98,0.0002,2]
[350651893,1738027847230,-3000.0,0.0002,2]
[350651894,1738027847239,-3010.55,0.0002,2]
[350651895,1738027847248,-380.0,0.0002,2]
[350651896,1738027847257,-8314.80852006,0.0002,30]
[350651897,1738027847266,-91021.33458978,0.0002,2]
[350651898,1738027847275,-138898.32179051,0.0002,2]
[350651899,1738027847285,-298.15624172,0.0002,2]
[350651900,1738027847294,-1467.7718012,0.0002,2]
[350651901,1738027847304,-4259.67768269,0.0002,2]
[350651902,1738027847313,-7500.0,0.0002,2]
[350651903,1738027847322,-3830.84545534,0.0002,2]
[350651904,1738027847331,-26321.61084123,0.0002,2]
[350651905,1738027847343,-6778.0,0.0002,2]
[350651906,1738027847354,-3536.05,0.0002,2]
[350651907,1738027847365,-1039.449305,0.0002,2]
[350651908,1738027847379,-51877.63281855,0.0002,2]
[350651909,1738027847390,-6149.12970289,0.0002,2]
[350651910,1738027847404,-7525.13109811,0.0002,2]
[350651911,1738027847425,-3033.81890189,0.0002,2]
[350651913,1738028201789,459.12101133,0.00011879,2]
[350651914,1738028202101,459.12101133,0.00011899,2]
[350651915,1738028202407,459.12101133,0.00011916,2]
[350651916,1738028202700,459.12101133,0.00011865,2]
[350651917,1738028202991,459.12101133,0.00011825,2]
[350651918,1738028209307,200.0,0.00011846,2]
[350651919,1738028209607,200.0,0.00011828,2]
[350651920,1738028209913,200.0,0.00011849,2]
[350651921,1738028228212,200.0,0.00011843,2]
[350651922,1738028450679,900.0,0.00022,120]
[350651926,1738028718165,179.34,0.00010137,2]
[350651928,1738028748099,13969087.06863792,0.00022,120]
[350651959,1738029031481,-550.0,0.00013,2]
[350651960,1738029031490,-1154.28419856,0.00014788,2]
[350651961,1738029031499,-519.43027901,0.00014794,2]
[350651962,1738029031508,-161.00475665,0.00014894,2]
[350651963,1738029031517,-519.430279,0.000149,2]
[350651964,1738029031527,-150.0,0.00014994,2]
[350651965,1738029031536,-600.0,0.00015,2]
[350651966,1738029031545,-275.4,0.000152,2]
[350651967,1738029031560,-150.0,0.00015424,2]
[350651968,1738029031569,-246.91,0.00015434,2]
[350651969,1738029031578,-273.44488609,0.00016,17]
[350651970,1738029031590,-659.64124571,0.00016,17]
[350651971,1738029031599,-150.0,0.00016137,2]
[350651972,1738029031608,-500.0,0.00016164,2]
[350651973,1738029031619,-150.0,0.00016267,2]
[350651974,1738029031628,-641.89,0.0001645,2]
[350651975,1738029031637,-152.0,0.00016499,2]
[350651976,1738029031646,-23.87456823,0.00016499,2]
[350651977,1738029031658,-276.12543177,0.00016499,2]
[350651978,1738029031667,-900.0,0.000165,2]
[350651979,1738029031676,-900.0,0.000165,2]
[350651980,1738029031685,-900.0,0.000165,2]
[350651981,1738029031695,-900.0,0.000165,2]
[350651982,1738029031703,-900.0,0.000165,2]
[350651983,1738029031713,-900.0,0.000165,2]
[350651984,1738029031722,-900.0,0.000165,2]
[350651985,1738029031731,-900.0,0.000165,2]
[350651986,1738029031740,-900.0,0.000165,2]
[350651987,1738029031748,-900.0,0.000165,2]
[350651988,1738029031757,-500.0,0.00016563,2]
[350651989,1738029031767,-531.63174878,0.00016563,2]
[350651990,1738029031776,-1202.678,0.0001664,2]
[350651991,1738029031786,-150.0,0.00016685,2]
[350651992,1738029031796,-176.14,0.00016712,2]
[350651993,1738029031805,-1500.0,0.00016749,2]
[350651994,1738029031814,-171.82,0.00016777,2]
[350651995,1738029031823,-2078.54,0.00016783,2]
[350651996,1738029031833,-1042.63,0.00016839,2]
[350651997,1738029031842,-900.0,0.00017,18]
[350651998,1738029031851,-650.0,0.00017,2]
[350651999,1738029031860,-180.44,0.0001701,2]
[350652000,1738029031871,-180.44,0.00017038,2]
[350652001,1738029031881,-1817.89,0.00017047,2]
[350652002,1738029031890,-180.44,0.00017067,2]
[350652003,1738029031899,-180.44,0.00017095,2]
[350652004,1738029031909,-1458.922,0.00017283,2]
[350652005,1738029031918,-500.0,0.00017677,7]
[350652006,1738029031928,-1161.9,0.000177,31]
[350652007,1738029031937,-1161.9,0.000177,31]
[350652008,1738029031947,-742.06078213,0.000177,31]
[350652009,1738029031971,-419.83921787,0.000177,31]
[350652010,1738029031980,-1161.9,0.000177,31]
[350652011,1738029031990,-1161.9,0.000177,31]
[350652012,1738029032000,-1161.9,0.000177,31]
[350652013,1738029032010,-1161.9,0.000177,31]
[350652014,1738029032019,-1161.9,0.000177,31]
[350652015,1738029032028,-1161.9,0.000177,31]
[350652016,1738029032037,-1161.9,0.000177,31]
[350652017,1738029032048,-1161.9,0.000177,31]
[350652018,1738029032057,-1161.9,0.000177,31]
[350652019,1738029032066,-1161.9,0.000177,31]
[350652020,1738029032075,-1161.9,0.000177,31]
[350652021,1738029032084,-1161.9,0.000177,31]
[350652022,1738029032093,-1161.9,0.000177,31]
[350652023,1738029032102,-150.99,0.00017728,2]
[350652024,1738029032112,-9999.99,0.00017728,2]
[350652025,1738029032123,-315.20366074,0.00017728,2]
[350652027,1738029032156,-108.63633926,0.00017728,2]
[350652029,1738029032165,-340.15536627,0.00017728,2]
[350652031,1738029032176,-659.83463373,0.00017728,2]
[350652033,1738029032186,-795.57,0.00017951,7]
[350652035,1738029032195,-127.26270531,0.00018,5]
[350652037,1738029032212,-29.80147469,0.00018,5]
[350652039,1738029032221,-900.0,0.00018,19]
[350652041,1738029032230,-420.0,0.0001803,2]
[350652045,1738029032240,-364.01,0.00018056,2]
[350652047,1738029032249,-329.75,0.00018057,2]
[350652049,1738029032259,-2000.0,0.00018082,2]
[350652051,1738029032268,-549.67,0.00018139,2]
[350652053,1738029032277,-1000.0,0.00018149,2]
[350652055,1738029032287,-250.0,0.00018169,2]
[350652057,1738029032296,-589.42,0.00018192,2]
[350652059,1738029032306,-555.9673905,0.00018205,2]